Cogmind - Beta 16 @@@ ROGUE MODE // 2025.11.05 @ 23:10:21 Player: Demo Result: Destroyed by P-80 Master with Gamma Rifle Performance ------------- Evolutions (8) 4000 Regions Visited (10) 2000 Robots Destroyed (91) 455 Value Destroyed (4295) 4295 Prototype IDs (34) 680 Alien Tech Used (0) 0 Bonus (2308) 2308 TOTAL SCORE: 13738 Bonus ------- High Alert Combat Kills 1354 Follower Combat Kills 154 Registered with UFD 300 Met Optimus in HQ 500 Cogmind --------- Core Integrity 0/1450 Matter 213/800 Energy 155/170 System Corruption 12% Temperature Cool (0) Movement Hovering (131) Ox1 Location -2/Quarantine Parts ------- > --- POWER (2) -------- Light Neutrino Core > --- PROPULSION (6) --- Improved Gyrokinetic Inverter Combat Linear Gravjet > --- UTILITY (11) ----- Experimental Coolant Injector Experimental Matter Compressor Advanced Signal Interpreter Advanced Target Analyzer > --- WEAPON (4) ------- Neutron Missile Launcher Advanced Micro-nuke Launcher Advanced Micro-nuke Launcher > --- INVENTORY (5) ---- Core Reset Matrix Advanced Micro-nuke Launcher Peak State ------------ > --- POWER ------------ Quantum Reactor Light Quantum Reactor > --- PROPULSION ------- Antigrav System Improved Antigrav System Cooled Antigrav System Cooled Antigrav System Combat Antigrav System > --- UTILITY ---------- Advanced Heat Sink Experimental Matter Compressor Advanced Gravity Neutralizer Advanced Sensor Array Advanced Signal Interpreter Long-range Terrain Scanner Advanced Melee Analysis Suite Advanced Target Analyzer Centrium Heavy Armor Plating Experimental Focal Shield > --- WEAPON ----------- Advanced Micro-nuke Launcher Advanced Micro-nuke Launcher Enhanced Force Lance Enhanced Force Lance > --- INVENTORY -------- Micro Antimatter Reactor Neutron Missile Launcher Advanced Micro-nuke Launcher [Rating: 171] Favorites ----------- Power Micro Antimatter Reactor Engine Light Deuterium Engine Power Core Micro Fission Core Reactor Micro Antimatter Reactor Propulsion Improved Antigrav System Treads Light Treads Wheel Subdweller Monowheel Hover Unit Improved Antigrav System Flight Unit Nuclear Pulse Array Utility Advanced Signal Interpreter Device Gravity Neutralizer Storage Experimental Matter Compressor Processor Advanced Signal Interpreter Hackware System Shield Protection Makeshift Light Armor Plating Weapon Enhanced Force Lance Ballistic Gun Heavy Machine Gun Ballistic Cannon Heavy Linear Accelerator Launcher Advanced Micro-nuke Launcher Slashing Weapon Katana Piercing Weapon Enhanced Force Lance Build | -11 -10 -10 -10 -7 -5 -4 -3 -3 -2 -2 ------- Run | Yrd Mat Min Sub Scr Fac Fac Res Tes Res Qua Slots Evolved 16 | . . . . . 10 2 2 . 2 . Power 1 | . . . . . 1 . . . . . Propulsion 4 | . . . . . 4 . . . . . Utility 9 | . . . . . 5 2 2 . . . Weapon 2 | . . . . . . . . . 2 . Parts Attached 119 | 2 1 3 3 3 20 3 30 21 29 4 Power 17 | . . . . . 5 . 4 2 5 1 Engine 1 | . . . . . 1 . . . . . Core 5 | . . . . . 4 . . . . 1 Reactor 11 | . . . . . . . 4 2 5 . Propulsion 36 | 2 . . 1 1 7 . 9 4 12 . Treads 2 | 2 . . . . . . . . . . Leg . | . . . . . . . . . . . Wheel 1 | . . . 1 . . . . . . . Hover 26 | . . . . . 4 . 7 4 11 . Flight 7 | . . . . 1 3 . 2 . 1 . Utility 52 | . 1 1 1 2 7 3 12 14 10 1 Device 28 | . 1 1 . 1 5 . 7 5 7 1 Storage 6 | . . . . . . . 2 4 . . Processor 8 | . . . . 1 1 1 3 2 . . Hackware 2 | . . . . . . 2 . . . . Protection 8 | . . . 1 . 1 . . 3 3 . Artifact . | . . . . . . . . . . . Weapon 14 | . . 2 1 . 1 . 5 1 2 2 Energy Gun . | . . . . . . . . . . . Energy Cannon . | . . . . . . . . . . . Ballistic Gun 1 | . . . . . . . 1 . . . Ballistic Cannon 1 | . . . . . . . . . . 1 Launcher 6 | . . . 1 . . . 1 1 2 1 Special Weapon . | . . . . . . . . . . . Impact Weapon . | . . . . . . . . . . . Slashing Weapon 3 | . . 2 . . 1 . . . . . Piercing Weapon 3 | . . . . . . . 3 . . . Special Melee Weapon . | . . . . . . . . . . . Unidentified Prototypes 22 | . . 1 . . 4 . 7 7 2 1 Parts Lost 54 | . . 1 2 . 3 2 13 3 29 1 Power 3 | . . . . . . . 1 . 1 1 Propulsion 20 | . . . 2 . 2 . 3 1 12 . Utility 28 | . . 1 . . . 2 9 2 14 . Weapon 3 | . . . . . 1 . . . 2 . Highest Loss Streak 9 | . . 1 2 . 2 2 5 3 9 1 To Critical Strikes 2 | . . . 1 . . . . . 1 . Average Backups 4 | . . 1 3 4 3 3 4 4 4 4 Power . | . . . . . . . . . . . Propulsion . | . . . . . . . 1 . . . Utility 1 | . . 1 2 3 2 2 . . . . Weapon 2 | . . . . 1 1 1 2 3 3 3 Tool/Special . | . . . . . . . . . . . Unused Backups 2 | . . . . . 1 . . . . 1 Power . | . . . . . . . . . . . Propulsion . | . . . . . . . . . . . Utility 1 | . . . . . 1 . . . . . Weapon . | . . . . . . . . . . . Tool/Special 1 | . . . . . . . . . . 1 Average Slot Usage (%) 68 | . 30 48 33 56 77 81 79 94 74 33 Core 1 | . . . . . 5 10 3 . . . Reactor 3 | . . . . . . . 3 9 6 3 Treads 2 | . 28 28 9 . . . . . . . Wheel 1 | . . . 8 13 . . . . . . Hover 12 | . . . . . 10 . 11 25 20 8 Flight 3 | . . . . 12 8 15 6 . . . Device 15 | . 2 11 . 4 20 20 18 23 18 4 Storage 2 | . . . . . . . 3 6 4 4 Processor 8 | . . . . 10 6 5 11 14 9 8 Protection 3 | . . . . . 9 10 4 2 3 . Slashing Weapon 4 | . . 8 14 14 8 9 2 . . . Piercing Weapon 3 | . . . . . . . 4 9 7 . Peak Build Rating 171 | 2 3 19 10 25 97 101 145 160 171 91 Average Rating 91 | 1 2 5 7 17 73 99 118 151 135 65 On Entrance 52 | . 2 3 7 7 23 95 84 142 160 58 Avg Prop Armor Cover (%) 15 | 41 40 38 25 23 8 . 6 2 2 . Naked Turns . | . . . . . . . . . . . Heaviest Build 84 | . 1 3 5 3 38 31 49 72 84 55 Greatest Support 98 | 3 3 3 3 6 51 51 91 94 98 26 Greatest Overweight (x) 2 | . . . 1 . 1 . . . 1 2 Average Overweight (x) . | . . . . . . . . . . . Largest Inventory Capacity 15 | 5 5 5 5 5 5 5 5 15 5 5 Average Capacity 5 | 5 5 5 5 5 5 5 5 5 5 5 Most Carried 5 | . . 4 5 5 5 5 5 5 5 5 Average Carried 4 | . . 2 4 5 4 4 4 4 4 4 Final Capacity 5 | 5 5 5 5 5 5 5 5 5 5 5 Final Carried 5 | . . 4 5 5 5 5 5 5 4 2 Class Distribution -------------------- 60% | Mutant 14% | Scavenger-Gladiator 12% | Scavenger-Scout 4% | Scavenger-Mutant 3% | Hacker-Mutant Dominant Class ---------------- Mutant | -10/Materials Mutant | -10/Mines Mutant | -10/Subcaves Mutant | -7/Scraptown Mutant | -5/Factory Hacker-Mutant | -4/Factory Scavenger-Gladiator | -3/Research Scavenger-Scout | -3/Testing Mutant | -2/Research Mutant | -2/Quarantine Resources | -11 -10 -10 -10 -7 -5 -4 -3 -3 -2 -2 ----------- Run | Yrd Mat Min Sub Scr Fac Fac Res Tes Res Qua Matter Collected 2616 | 212 . 28 74 . 185 127 544 608 838 . Remotely . | . . . . . . . . . . . Salvage Created 3615 | . . . 106 . 303 228 727 481 1546 224 Parts 179 | . . . 8 . 12 6 44 21 80 8 Haulers Intercepted 6 | . . . . . 1 1 . . 3 1 Recyclers Shooed . | . . . . . . . . . . . Parts Field Recycled . | . . . . . . . . . . . Retrieved Matter . | . . . . . . . . . . . Parts Self-Destructed 4 | . . . 4 . . . . . . . Prevented . | . . . . . . . . . . . Parts Restored . | . . . . . . . . . . . Kills | -11 -10 -10 -10 -7 -5 -4 -3 -3 -2 -2 ------- Run | Yrd Mat Min Sub Scr Fac Fac Res Tes Res Qua Combat Hostiles Destroyed 60 | . . . 3 . . 7 15 3 24 8 Melee 18 | . . . 1 . . . 6 3 8 . AOE 42 | . . . 2 . . 7 9 . 16 8 Classes Destroyed 15 | . . . 1 . 3 3 3 2 3 . Worker 6 | . . . . . . . 1 1 2 2 Builder 4 | . . . . . . . . . 3 1 Tunneler 2 | . . . . . . . 2 . . . Hauler 6 | . . . . . 1 1 . . 3 1 Recycler 7 | . . . . . 1 . 1 2 3 . Operator 1 | . . . . . . 1 . . . . Watcher 2 | . . . . . 1 . . . 1 . Swarmer 18 | . . . . . . 5 4 . 9 . Cutter 3 | . . . . . . . . . 3 . Grunt 15 | . . . . . . 2 3 1 4 5 Researcher 3 | . . . . . . . . 1 . 2 Sentry 4 | . . . . . . . . . 1 3 Hunter 1 | . . . . . . . . 1 . . Programmer 16 | . . . . . . . 8 1 7 . Subdweller 3 | . . . 3 . . . . . . . Best Kill Streak 15 | . . . 2 . 1 8 5 2 15 11 Combat Bots Only 12 | . . . 2 . . 7 4 1 12 8 Max Kills in Single Turn 5 | . . . 1 . 1 4 3 1 5 4 Gunslinging . | . . . . . . . . . . . Exploded 4 | . . . 1 . . 4 2 . 4 3 Melee 1 | . . . 1 . . . 1 1 1 . Uniques/NPCs Destroyed . | . . . . . . . . . . . Combat | -11 -10 -10 -10 -7 -5 -4 -3 -3 -2 -2 -------- Run | Yrd Mat Min Sub Scr Fac Fac Res Tes Res Qua Hostile Shots Fired 783 | . . 51 15 . 20 37 153 37 440 30 Missed 307 | . . 20 4 . 10 13 63 8 180 9 Hits 476 | . . 31 11 . 10 24 90 29 260 21 Melee 3 | . . . . . . . . . 3 . Projectile 473 | . . 31 11 . 10 24 90 29 257 21 AOE 1 | . . . . . . . . . 1 . Critical Strikes 36 | . . . 1 . 1 2 8 3 20 1 Part Disruptions 3 | . . . . . . . 1 . 2 . Damage Taken 9693 | . . 312 237 . 200 444 2010 722 5188 580 Core 2435 | . . 100 63 . 41 194 371 212 1365 89 Absorbed by Shields 144 | . . . . . . . . 144 . . Redirected to Shielding 109 | . . . . . . . . . 109 . Ignored by Resistances 550 | . . . . . . . . . 550 . Regen/Repaired (Parts) 47 | . . . . . . . . . 47 . Core Remaining (%) 73 | 100 . . . 34 95 83 . 55 . . Volleys Fired 38 | . . . 3 . . 6 14 . 8 7 Largest 4 | . . . 1 . . 1 1 . 2 4 Hottest 139 | . . . 36 . . 36 36 . 60 139 Shots Fired 59 | . . . 3 . . 6 14 . 11 25 Gun . | . . . . . . . . . . . Cannon . | . . . . . . . . . . . Launcher 59 | . . . 3 . . 6 14 . 11 25 Special . | . . . . . . . . . . . Kinetic . | . . . . . . . . . . . Thermal . | . . . . . . . . . . . Explosive 59 | . . . 3 . . 6 14 . 11 25 Electromagnetic . | . . . . . . . . . . . Robot Hit Streak 9 | . . . 1 . . 7 8 . 5 9 Robot Miss Streak 4 | . . . . . . . 4 . 3 1 Penetration Max . | . . . . . . . . . . . Secondary Targets . | . . . . . . . . . . . Shots Hit Robots 134 | . . . 11 . 6 15 29 13 45 15 Core Hits 164 | . . . 3 . 4 17 28 7 53 52 Critical Kills . | . . . . . . . . . . . Critical Parts Destroyed . | . . . . . . . . . . . Critical Strikes 21 | . . . . . . 3 5 3 10 . Sever 3 | . . . . . . 3 . . . . Impale 18 | . . . . . . . 5 3 10 . Melee Attacks 228 | . . 3 25 . 38 24 31 29 78 . Impact . | . . . . . . . . . . . Slashing 100 | . . 3 25 . 38 24 10 . . . Piercing 128 | . . . . . . . 21 29 78 . Sneak Attacks 22 | . . . 1 . 2 1 3 5 10 . Combat Hostiles . | . . . . . . . . . . . Follow-up Attacks 11 | . . . . . . 1 2 2 6 . Damage Inflicted 15631 | . . 18 507 . 258 1458 2881 994 6118 3397 Guns . | . . . . . . . . . . . Cannons . | . . . . . . . . . . . Explosions 10071 | . . . 214 . . 1074 1722 . 3664 3397 Melee 5496 | . . . 293 . 258 384 1159 994 2408 . Ramming 64 | . . 18 . . . . . . 46 . Kinetic . | . . . . . . . . . . . Thermal . | . . . . . . . . . . . Explosive 10071 | . . . 214 . . 1074 1722 . 3664 3397 Electromagnetic . | . . . . . . . . . . . Impact . | . . . . . . . . . . . Slashing 1270 | . . . 293 . 258 384 335 . . . Piercing 4226 | . . . . . . . 824 994 2408 . Highest Corruption 17 | . . . . . . . 13 17 11 12 Average Corruption 10 | . . . . . . . 8 15 6 11 Corruption Purged . | . . . . . . . . . . . Corruption Blocked . | . . . . . . . . . . . Effects 68 | . . . . . . . 15 28 14 11 Message Errors 20 | . . . . . . . 3 10 5 2 Matter Fused 16 | . . . . . . . 3 6 6 1 Heat Flow Errors 9 | . . . . . . . 5 3 1 . Energy Discharges 8 | . . . . . . . 2 1 1 4 Data Loss (minor) 5 | . . . . . . . . 4 . 1 Data Loss (major) 6 | . . . . . . . 2 3 . 1 Alerts 1 | . . . . . . . . 1 . . Misdirections 1 | . . . . . . . . . 1 . Weapon Failures 2 | . . . . . . . . . . 2 Overload Shots . | . . . . . . . . . . . Overflow Damage 1240 | . . . . . 2 83 265 172 644 74 Projectiles . | . . . . . . . . . . . Explosions 430 | . . . . . . 14 47 . 295 74 Melee 810 | . . . . . 2 69 218 172 349 . Knockbacks 1 | . . . . . . . . . 1 . Impact 1 | . . . . . . . . . 1 . Kinetic . | . . . . . . . . . . . Secondary . | . . . . . . . . . . . Self-Inflicted Damage 249 | . . 9 . . . . . . 181 59 Shots 3 | . . . . . . . . . 2 1 Rammed 5 | . . 4 . . . . . . 1 . Targets Rammed 5 | . . 4 . . . . . . 1 . Kicked . | . . . . . . . . . . . Crushed . | . . . . . . . . . . . Highest Temperature 320 | . . . . . . . 320 221 191 . Average Temperature 74 | . . . . . . . 122 50 43 . Received Heat Transfer 1214 | . . 57 . . 63 117 446 36 396 99 Effects 3 | . . . . . . . 3 . . . Energy Bleed 2 | . . . . . . . 2 . . . Damage (minor) 1 | . . . . . . . 1 . . . Siege Activations . | . . . . . . . . . . . Martial Activations . | . . . . . . . . . . . Shielding Activations . | . . . . . . . . . . . Robots Disrupted . | . . . . . . . . . . . Combat Hostiles . | . . . . . . . . . . . Robots Corrupted 1 | . . . . . . . . . 1 . Combat Hostiles . | . . . . . . . . . . . Parts Fried 4 | . . . . . . . . . 4 . Impact Corruptions 1 | . . . . . . . . . 1 . Robots Melted . | . . . . . . . . . . . Combat Hostiles . | . . . . . . . . . . . Parts Melted . | . . . . . . . . . . . Heat Transferred . | . . . . . . . . . . . Parts Sabotaged . | . . . . . . . . . . . Parts Stolen . | . . . . . . . . . . . Parts Stripped . | . . . . . . . . . . . Power Chain Reactions . | . . . . . . . . . . . Alert | -11 -10 -10 -10 -7 -5 -4 -3 -3 -2 -2 ------- Run | Yrd Mat Min Sub Scr Fac Fac Res Tes Res Qua Maximum Alert Level 4 | . . . . . . 1 2 2 4 4 Low Security (%) 31 | 100 100 100 . . 100 90 22 . . . Level 1 20 | . . . . . . 9 37 59 14 . Level 2 17 | . . . . . . . 40 40 14 . Level 3 16 | . . . . . . . . . 36 75 Level 4 12 | . . . . . . . . . 35 24 Level 5 . | . . . . . . . . . . . High Security . | . . . . . . . . . . . Max Security . | . . . . . . . . . . . Peak Influence 1405 | . . 15 . . 57 296 592 461 1405 1362 Initial 777 | . . . . . . 1 144 323 240 777 Average 477 | . . 1 . . 13 51 364 383 894 991 Influence Increases 4574 | . . 30 . . 195 370 853 426 1860 840 Destroy 0b10 Robot/C 1260 | . . . . . . 140 300 140 480 200 Destroy 0b10 Robot/NC 140 | . . . . . 15 10 20 15 60 20 Destroy Leader 206 | . . . . . 4 22 60 20 88 12 Allied During Kill 17 | . . . . . . . . 17 . . Successful Hack 127 | . . . . . . 22 16 59 30 . Disable Machine 195 | . . . . . 15 . 30 60 30 60 Anti-Garrison Action 400 | . . . . . . . . . 200 200 Destroy Structure 1074 | . . . . . 56 56 232 10 372 348 Partial Spotted 105 | . . . . . 15 . 45 15 30 . Lose Combat Pursuer 1050 | . . 30 . . 90 120 150 90 570 . Influence Decreases 3107 | . . 25 5 . 192 97 554 572 907 755 Entered New Map 1183 | . . . 3 . . 2 132 252 189 605 Time Decay 1362 | . . 15 2 . 180 75 262 270 428 130 Lost Part 502 | . . 10 . . 12 20 130 30 290 10 Lost Ally 60 | . . . . . . . 30 20 . 10 Squads Dispatched 34 | . . 1 . . 4 4 5 4 12 4 Investigation 10 | . . 1 . . 1 3 . 2 2 1 Extermination 8 | . . . . . 2 . 2 1 3 . Reinforcement 10 | . . . . . 1 1 3 1 4 . Assault 6 | . . . . . . . . . 3 3 Garrison . | . . . . . . . . . . . Intercept . | . . . . . . . . . . . Searches Triggered . | . . . . . . . . . . . Construction Impeded 2 | . . . . . . . 1 . 1 . Haulers Reinforced 2 | . . . . . 1 . . . 1 . Active Scanning Responses . | . . . . . . . . . . . Cargo Convoy Interrupts . | . . . . . . . . . . . Stealth | -11 -10 -10 -10 -7 -5 -4 -3 -3 -2 -2 --------- Run | Yrd Mat Min Sub Scr Fac Fac Res Tes Res Qua Distress Signals 7 | . 1 . . . 1 1 2 . 2 . Communications Jammed . | . . . . . . . . . . . Distress Signals . | . . . . . . . . . . . Times Spotted 198 | . 1 11 3 . 9 25 40 15 81 13 Peak Tracking Total 19 | . 4 4 2 . 5 11 12 6 19 6 Tactical Retreats 30 | . . 2 . . 3 2 6 1 16 . Traps | -11 -10 -10 -10 -7 -5 -4 -3 -3 -2 -2 ------- Run | Yrd Mat Min Sub Scr Fac Fac Res Tes Res Qua Traps Triggered . | . . . . . . . . . . . Indirectly . | . . . . . . . . . . . Trap Hack Attempts . | . . . . . . . . . . . Triggered . | . . . . . . . . . . . Disarmed . | . . . . . . . . . . . Reprogrammed . | . . . . . . . . . . . Reused . | . . . . . . . . . . . Traps Extracted . | . . . . . . . . . . . Installed . | . . . . . . . . . . . Triggered . | . . . . . . . . . . . Machines | -11 -10 -10 -10 -7 -5 -4 -3 -3 -2 -2 ---------- Run | Yrd Mat Min Sub Scr Fac Fac Res Tes Res Qua Machines Disabled 13 | . . . . . 1 . 2 4 2 4 Max in Single Turn 2 | . . . . . 1 . 1 1 1 2 Garrison Access 2 | . . . . . . . . . 1 1 Machines Repaired . | . . . . . . . . . . . Machines Dismantled . | . . . . . . . . . . . Machines Sabotaged . | . . . . . . . . . . . Overloaded Fab Kills . | . . . . . . . . . . . Hacking | -11 -10 -10 -10 -7 -5 -4 -3 -3 -2 -2 --------- Run | Yrd Mat Min Sub Scr Fac Fac Res Tes Res Qua Machines Accessed 27 | . . 2 1 . 4 5 3 8 3 1 Terminals 12 | . . . . . 3 2 3 3 1 . Fabricators 1 | . . . . . . . . 1 . . Repair Stations 1 | . . . . . . . . . 1 . Recycling Units 4 | . . . . . 1 3 . . . . Scanalyzers 3 | . . . . . . . . 3 . . Garrison Access 3 | . . . . . . . . 1 1 1 Total Hacks 59 | . . 2 4 . 4 12 8 18 9 2 Successful 29 | . . 2 4 . 2 10 1 5 4 1 Failed 30 | . . . . . 2 2 7 13 5 1 Catastrophic 5 | . . . . . . . 1 3 1 . Database Lockouts . | . . . . . . . . . . . Manual 36 | . . . . . 3 10 5 9 7 2 Terminals 32 | . . . . . 3 9 8 8 4 . Fabricators 2 | . . . . . . . . 2 . . Repair Stations 2 | . . . . . . . . . 2 . Recycling Units 4 | . . . . . 1 3 . . . . Scanalyzers 5 | . . . . . . . . 5 . . Garrison Access 8 | . . . . . . . . 3 3 2 Terminal Hacks 13 | . . 2 4 . 1 4 1 . 1 . Record 4 | . . . 4 . . . . . . . Open Door 2 | . . 2 . . . . . . . . Open DSF 1 | . . . . . 1 . . . . . Level Access Points 1 | . . . . . . 1 . . . . Branch Access Points 3 | . . . . . . 1 1 . 1 . Terminal Index 1 | . . . . . . 1 . . . . Locate Traps 1 | . . . . . . 1 . . . . Fabricator Hacks . | . . . . . . . . . . . Repair Station Hacks . | . . . . . . . . . . . Recycling Unit Hacks . | . . . . . . . . . . . Scanalyzer 3 | . . . . . . . . 3 . . Retrieve Study 3 | . . . . . . . . 3 . . Garrison Access Hacks . | . . . . . . . . . . . Unauthorized Hacks 13 | . . . . . 1 6 . 2 3 1 Terminals 6 | . . . . . . 3 . 2 1 . Botnet 5 | . . . . . . 2 . 2 1 . Operators 1 | . . . . . . 1 . . . . Fabricators . | . . . . . . . . . . . Repair Stations 1 | . . . . . . . . . 1 . Patch 1 | . . . . . . . . . 1 . Recycling Units 4 | . . . . . 1 3 . . . . Fedlink 4 | . . . . . 1 3 . . . . Scanalyzers . | . . . . . . . . . . . Garrison Access 2 | . . . . . . . . . 1 1 Jam 2 | . . . . . . . . . 1 1 Data Cores Recovered 1 | . . . . . . 1 . . . . Used 1 | . . . . . . 1 . . . . Hacking Detections 19 | . . . . . 3 2 3 8 3 . Full Trace Events 2 | . . . . . . . . 2 . . Feedback Events . | . . . . . . . . . . . Feedback Blocked . | . . . . . . . . . . . Robot Schematics Acquired . | . . . . . . . . . . . Robots Built . | . . . . . . . . . . . Authchips . | . . . . . . . . . . . Time . | . . . . . . . . . . . Total Robot Build Rating . | . . . . . . . . . . . Part Schematics Acquired 6 | . . . . . . . . 4 . 2 Parts Built . | . . . . . . . . . . . Authchips . | . . . . . . . . . . . Time . | . . . . . . . . . . . Total Part Build Rating . | . . . . . . . . . . . Part Studies Acquired 3 | . . . . . . . . 3 . . Parts Repaired . | . . . . . . . . . . . Time . | . . . . . . . . . . . Parts Recycled . | . . . . . . . . . . . Recycled Matter . | . . . . . . . . . . . Retrieved Matter . | . . . . . . . . . . . Retrieved Components . | . . . . . . . . . . . Parts Scanalyzed . | . . . . . . . . . . . Part Schematics Acquired . | . . . . . . . . . . . Parts Damaged . | . . . . . . . . . . . Bothacking | -11 -10 -10 -10 -7 -5 -4 -3 -3 -2 -2 ------------ Run | Yrd Mat Min Sub Scr Fac Fac Res Tes Res Qua Used RIF Installer . | . . . . . . . . . . . Robots Hacked . | . . . . . . . . . . . Non-combat . | . . . . . . . . . . . Combat . | . . . . . . . . . . . Robot Hacks Applied . | . . . . . . . . . . . Relay Couplers Released . | . . . . . . . . . . . Fabnet Peak Effective % . | . . . . . . . . . . . Robots Rewired 1 | . . . . . . . . 1 . . Allies Hacked . | . . . . . . . . . . . Hacks Repelled . | . . . . . . . . . . . Allies | -11 -10 -10 -10 -7 -5 -4 -3 -3 -2 -2 -------- Run | Yrd Mat Min Sub Scr Fac Fac Res Tes Res Qua Total Allies 1 | . . . . . . . . 1 . . Largest Group 1 | . . . . . . . . 1 . . Highest-Rated Group 120 | . . . . . . . . 120 . . Highest-Rated Ally 120 | . . . . . . . . 120 . . Total Orders 4 | . . . . . . . 1 2 . 1 STAY 1 | . . . . . . . . 1 . . FOLLOW 1 | . . . . . . . . 1 . . EXPLORE 1 | . . . . . . . . . . 1 RETURN 1 | . . . . . . . 1 . . . Ally Attacks 14 | . . . . . . . . 14 . . Total Damage 818 | . . . . . . . . 818 . . Kills 3 | . . . . . . . . 3 . . Allies Corrupted 1 | . . . . . . . . 1 . . Allies Melted . | . . . . . . . . . . . Intel | -11 -10 -10 -10 -7 -5 -4 -3 -3 -2 -2 ------- Run | Yrd Mat Min Sub Scr Fac Fac Res Tes Res Qua Active Infowar (turns) 2538 | . 7 137 . 90 548 192 167 583 814 . Sensors 1601 | . . . . 90 548 192 86 366 319 . IFF 482 | . . . . . . . . . 482 . Terrain 1158 | . . . . . . . 2 527 629 . Structural 144 | . 7 137 . . . . . . . . Seismic 98 | . . . . . . . 77 21 . . ECM 4 | . . . . . . . 4 . . . Robot Analysis Total . | . . . . . . . . . . . Derelict Logs Recovered 3 | . . 2 . 1 . . . . . . Drone Launches 7 | . . . . . . . 5 . . 2 Drone Recoveries 2 | . . . . . . . 2 . . . Exploration | -11 -10 -10 -10 -7 -5 -4 -3 -3 -2 -2 ------------- Run | Yrd Mat Min Sub Scr Fac Fac Res Tes Res Qua Turns Passed 4189 | 13 48 186 462 256 548 205 562 584 1053 272 Spaces Moved 5814 | 21 92 323 420 510 1002 386 827 790 1181 262 Core 1311 | 21 92 323 420 455 . . . . . . Treads . | . . . . . . . . . . . Legs . | . . . . . . . . . . . Wheels . | . . . . . . . . . . . Hover 2572 | . . . . . 1 . 338 790 1181 262 Flight 1931 | . . . . 55 1001 386 489 . . . Fastest Speed 31 | 50 50 50 50 40 34 34 31 40 40 61 Average Speed 45 | 50 50 50 50 49 38 34 39 43 50 67 Slowest Speed 201 | 50 50 50 100 50 120 34 61 46 131 201 Overloaded Moves 60 | . . . . . . . 28 . 32 . Propulsion Burnouts 1 | . . . . . . . . . 1 . Robots Hopped 13 | . . . . . 1 4 8 . . . Potential Cave-ins . | . . . . . . . . . . . Cave-ins Triggered 1 | . . . . . . . . 1 . . Exploration Rate (%) 35 | 3 26 71 29 59 24 16 34 68 26 34 Regions Visited 10 Branch Regions 5 Pre-discovered Areas 3 | . . . 2 . . 1 . . . . Known Exits Taken 6 | . . . . 1 1 1 1 1 1 . Unknown Exits Taken 4 | 1 1 1 1 . . . . . . . Scrap Searched 7 | . . 1 5 1 . . . . . . Spaces Dug 85 | . . 1 11 . 28 11 5 5 24 . Terrain Destroyed 681 | . . 1 30 . 28 35 150 5 258 174 Melee 74 | . . 1 . . 28 11 5 5 24 . Projectile . | . . . . . . . . . . . AOE 607 | . . . 30 . . 24 145 . 234 174 Terrain Rammed . | . . . . . . . . . . . Walls Destroyed . | . . . . . . . . . . . Machines Disabled . | . . . . . . . . . . . Actions | -11 -10 -10 -10 -7 -5 -4 -3 -3 -2 -2 --------- Run | Yrd Mat Min Sub Scr Fac Fac Res Tes Res Qua Total 6893 | 22 92 342 629 513 1107 414 974 979 1480 341 Wait 565 | . . 5 176 . 23 2 41 100 166 52 Move 5780 | 20 91 322 419 509 999 378 811 789 1180 262 Hop 11 | . . . . . 1 3 7 . . . Pick Up 18 | . . 3 1 . 3 . 7 3 . 1 Fast Attach 107 | 2 1 2 1 3 22 1 23 21 27 4 Attach 32 | . . 1 2 . 4 1 8 3 6 7 Detach 22 | . . 1 2 . 2 1 4 2 6 4 Swap 28 | . . . . . 2 2 14 4 5 1 Drop 76 | . . 1 . 1 14 . 16 25 16 3 Fire 38 | . . . 3 . . 6 14 . 8 7 Melee 203 | . . 3 25 . 37 20 29 24 65 . Ram 5 | . . 4 . . . . . . 1 . Kick . | . . . . . . . . . . . Crush . | . . . . . . . . . . . Escape Stasis . | . . . . . . . . . . . Rewire 8 | . . . . . . . . 8 . . Trap . | . . . . . . . . . . . Miscellaneous . | . . . . . . . . . . . Route ------- -11/Scrapyard -10/Materials -10/Mines (discovered 3 exits: [*Mat] / [*Exi] / *Sub) -10/Subcaves (discovered 2 exits: [*Mat] / [*Scr]) -7/Scraptown -5/Factory (discovered 2 exits: *Fac / *Upp) -4/Factory (discovered 6 exits: *Res x4 / Upp x2) -3/Research (discovered 3 exits: Arm / *Tes x2) -3/Testing -2/Research (discovered 3 exits: *Acc / *Qua x2) -2/Quarantine History --------- Turn | Location | Event 4 | -11/Scrapyard | Discovered new exit (range 16) 14 | -11/Scrapyard | Entered Materials 44 | -10/Materials | Discovered new exit (range 12) 62 | -10/Materials | Entered Mines 76 | -10/Mines | Found the Drone Emporium 78 | -10/Mines | Found Prototype Device 97 | -10/Mines | Deemed a non-threat by the Exiles lab entrance 97 | -10/Mines | Discovered new exit (range 6) 135 | -10/Mines | Discovered new exit (range 5) 152 | -10/Mines | Learned 2 Materials zone layouts 206 | -10/Mines | Met a Derelict shopkeep closing up shop 229 | -10/Mines | Identified Decoy Drone Bay 231 | -10/Mines | Learned Materials emergency access door positions 247 | -10/Mines | Discovered new exit (range 2) 248 | -10/Mines | Entered Subcaves 249 | -10/Subcaves | Approached by a straggling Scientist 308 | -10/Subcaves | Build established: Mutant 316 | -10/Subcaves | Discovered new exit (range 10) 334 | -10/Subcaves | Visited Clippyterm 336 | -10/Subcaves | Learned location of Extension (-5) 336 | -10/Subcaves | Learned location of Section 7 (-2) 394 | -10/Subcaves | Disturbed a concealed Subdweller 420 | -10/Subcaves | Core integrity fell below 50% 697 | -10/Subcaves | Scientist uncovered a shortcut to Scraptown 710 | -10/Subcaves | Entered Scraptown 797 | -7/Scraptown | Scanned Subdweller tech in exchange for log data 799 | -7/Scraptown | Learned Factory terminal intel 826 | -7/Scraptown | Visited UFD Registry 826 | -7/Scraptown | Registered with UFD as "Bioshell" 871 | -7/Scraptown | Visited Infowarlord's Domain 875 | -7/Scraptown | Found Exp. Sensor Array 892 | -7/Scraptown | Visited Scrapoid Research Area 900 | -7/Scraptown | Visited Botcube Research 942 | -7/Scraptown | Met Optimus 942 | -7/Scraptown | Accepted into 0bPrime 964 | -7/Scraptown | Discovered new exit (range 5) 965 | -7/Scraptown | Identified exit to Factory 966 | -7/Scraptown | Entered Factory 966 | -5/Factory | Evolved 10 slots: Power x1, Propulsion x4, Utility x5 967 | -5/Factory | Loaded intel: 28 terminal locations 1164 | -5/Factory | Discovered new exit (range 15) 1169 | -5/Factory | Identified exit to Upper Caves 1387 | -5/Factory | Loaded intel: 8 recycling unit locations 1499 | -5/Factory | Discovered new exit (range 14) 1504 | -5/Factory | Identified exit to Factory 1514 | -5/Factory | Entered another Factory area 1514 | -4/Factory | Evolved 2 slots: Utility x2 1537 | -4/Factory | Spotted B-86 Titan 1561 | -4/Factory | Identified exit to Upper Caves 1591 | -4/Factory | Spotted B-86 Titan 1593 | -4/Factory | Loaded intel: 7 recycling unit locations 1593 | -4/Factory | Learned location of Protoforge (-2) 1661 | -4/Factory | Identified exit to Research 1719 | -4/Factory | Entered Research 1719 | -3/Research | Evolved 2 slots: Utility x2 1732 | -3/Research | Destroyed 7 combat bots 1826 | -3/Research | Spotted B-86 Titan 1922 | -3/Research | Lost 5 parts (1p1n3u) 1924 | -3/Research | Found Prototype Launcher 1924 | -3/Research | Identified Adv. Micro-nuke Launcher 1926 | -3/Research | Found Adv. Micro-nuke Launcher 1928 | -3/Research | Found Adv. Micro-nuke Launcher 1978 | -3/Research | Found Prototype Device 1978 | -3/Research | Identified Exp. Shield Generator 2002 | -3/Research | Found Prototype Device 2002 | -3/Research | Identified Exp. ECM Suite 2009 | -3/Research | Lost 3 parts (2n1u) 2039 | -3/Research | Identified exit to Armory 2039 | -3/Research | Identified exit to Testing 2132 | -3/Research | System corruption reached 10% 2197 | -3/Research | Spotted B-86 Titan 2261 | -3/Research | Found Prototype Device 2261 | -3/Research | Identified Exp. EM Disruption Field 2281 | -3/Research | Entered Testing 2409 | -3/Testing | Build established: Scavenger-Gladiator 2436 | -3/Testing | Crushed by falling debris 2476 | -3/Testing | Lost 3 parts (1n2u) 2517 | -3/Testing | Found Adv. Micro-nuke Launcher 2581 | -3/Testing | Found Prototype Protection 2581 | -3/Testing | Identified Centrium Heavy Armor Plating 2585 | -3/Testing | Found Prototype Device 2585 | -3/Testing | Identified Exp. Focal Shield 2627 | -3/Testing | Rewired PL-MKJN28ZRHA 2789 | -3/Testing | Build established: Scavenger-Scout 2852 | -3/Testing | Discovered new exit (range 13) 2857 | -3/Testing | Identified exit to Research 2865 | -3/Testing | Entered Research 2865 | -2/Research | Evolved 2 slots: Weapon x2 2932 | -2/Research | Identified exit to Quarantine 3115 | -2/Research | First assault squad dispatched 3198 | -2/Research | Destroyed 12 combat bots 3223 | -2/Research | Spotted B-90 Cyclops 3271 | -2/Research | Lost 8 parts (4n4u) 3441 | -2/Research | Build established: Mutant 3679 | -2/Research | Lost 3 parts (3u) 3794 | -2/Research | Core integrity fell below 50% 3832 | -2/Research | System corruption reached 10% 3867 | -2/Research | Discovered new exit (range 15) 3868 | -2/Research | Lost 9 parts (3n5u1w) 3876 | -2/Research | Identified exit to Access 3883 | -2/Research | Core integrity fell below 20% 3918 | -2/Research | Entered Quarantine 3943 | -2/Quarantine | Lost 5 parts (1p2n1u1w) 3973 | -2/Quarantine | Found Alien Artifact 3986 | -2/Quarantine | Spotted Alpha 7 4168 | -2/Quarantine | First assault squad dispatched 4168 | -2/Quarantine | Destroyed 8 combat bots 4190 | -2/Quarantine | Destroyed by P-80 Master with Gamma Rifle Last Messages --------------- 04143_ Y-72 Warden destroyed. 04144_ The unstable cave ceiling collapses. 04147_ Destroyed Hvy. Laser. 04147_ G-73 Enforcer destroyed. 04150_ The unstable cave ceiling collapses. 04163_ Extracted schematic archive: Enh. Multireflex Exoskeleton. 04164_ Acquired Prototype Power Core. 04164_ Identified Lgt. Neutrino Core. 04166_ Extracted schematic archive: Prc. Matter Filter. 04168_ ALERT: Unidentified disturbance in Zone 1Y, multiple assault carriers dispatched. 04170_ The unstable cave ceiling collapses. 04179_ System corrupted: Substantial component data lost. 04190_ C-65 Expert destroyed. 04190_ A-15 Conveyor destroyed. 04190_ K-01 Serf destroyed. 04190_ Destroyed Imp. Antigrav System. Map ----- +----------------------------------------------------+ | ?????????????????????????????????????????????????? | | ?????????????????????????????????????????????????? | | ?????????????????????????????????????????????????? | | ?????????????????????????????????????????????????? | | ?????????????????????????????????????????????????? | | ?????????????????????????????????????????????????? | | ?????????????????????????????????????????????????? | | ?????????????????????????????????????????????????? | | ?????????????????????????????????????????????????? | | ?????????????????????????????????????????????????? | | ?????????????????????????????????????????????????? | | ?????????????????????????????????????????????????? | | ######???????????????????????????????????????????? | | #???????????????????????????????????????????? | | "" #???????????????????????????????????????????? | | "" #???????????????????????????????????????????? | | " #???????????????????????????????????????????? | | #???????????????????????????????????????????? | | " #???????????????????????????????????????????? | | " #???????????????????????????????????????????? | | #???????????????????????????????????????????? | | #??????????????#####????????????????????????? | | #####??????????????# #????????????????????????? | | #????????????????# #????????????????????????? | | # ################### ###### ####+???? | | ! R @ ?? | | ! ! ! ?? | | R p %] ?? | | % k c ]p ?? | | ##########################+ #####+#??? | | ##??????????????????????? ??????????? | | ###?????????????????????? ??????????? | | ###???????????????????# """""" ??????????? | | #???????????????????# """""" ##???????????? | | "" #??????###########??# """""" #????????????? | | R" #??????# """G""" #??# #????????????? | | " #??????# """ """ #??# """""" #????????????? | | #??????# #??#????"""?? #????????????? | | #??????# #????????????? #????????????? | | #+##??????# """ """ #?????????????? #????????????? | | # #???????# " " """ #????????????????????????????? | | # #???????# """ """ #????????????????????????????? | | # #???????# #????????????????????????????? | | # #############+#####????????????????????????????? | | #######?????????????????????????? | | +?????????????????????????? | | #######?????????????????????????? | | #+############ #???????????????????????????????? | | #??????????# #???????????????????????????????? | | #??????????# #???????????????##?##???????????? | +----------------------------------------------------+ Best States ------------- Heat Dissipation 77 Coolant Potential 120 Energy Generation 45 Energy Capacity 2000 Matter Stores 800 Matter Capacity 800 Sight Range 16 Robot Scan Range 20 Terrain Scan Range 24 Terrain Scan Density 10 ECM Strength 3 Power Amplification 20 Additional Mass Support 16 Armor Coverage 600 Resistance: KI 30 Resistance: TH 30 Power Shielding 66 Evasion (%) 68 Melee Accuracy 16 Launcher Accuracy 30 Target Analysis 8 Recoil Reduction 2 Offensive Hacking 10 Defensive Hacking 10 Item Schematics ----------------- Exp. Heat Sink | -3/Testing | Archive Hvy. Tesla Rifle | -3/Testing | Archive Adv. Matter Compressor | -3/Testing | Archive Imp. Matter Neutralizer | -3/Testing | Archive Enh. Multireflex Exoskeleton | -2/Quarantine | Archive Prc. Matter Filter | -2/Quarantine | Archive Robot Schematics ------------------ None Fabricated ------------ Nothing Repaired ---------- Nothing Studied --------- Cmb. Antigrav System | -3/Testing | Hacked Enh. Force Lance | -3/Testing | Hacked Mic. Antimatter Reactor | -3/Testing | Hacked Alien Tech Used ----------------- None Achievements -------------- None Challenges ------------ None Game ------ Seed ZioniteLauncherStorage Manual? 0 Play Time 00:56:54 Cumulative 377.0 hours Start 2025.11.05 @ 22:16:31 End 2025.11.05 @ 23:10:21 Sessions 1 Manual Loads 0 Difficulty Rogue Special Mode None Game No. 338 Rogue 338 Adventurer 0 Explorer 0 Win Type - Total 3 Types 2/1/0/0/0/0/0/0/0/0 Lore% 84 Gallery% 83 Achievement% 60 Wizard Run 0 Options --------- Layout 1 ASCII 0 Keyboard 0 Movement Numpad Keybinds 0 Fullscreen 1 Font 24/Smallcaps Map View 50x35 Zoom Use 0% Tactical HUD 1 Map Filters NONE Filters NONE Steam 1 RUN: 258fd92b-8094-4285-b5f2-74e61b8ea06b